lending/lending_fUSD_20250621
["ID","MTS","AMOUNT","RATE_DAILY","PERIOD"]
[366829460,1750487433248,-170.8,0.00025161,2]
[366829461,1750487433257,-170.8,0.00025168,2]
[366829463,1750487433267,-170.8,0.00025175,2]
[366829465,1750487433277,-7902.99,0.00025239,2]
[366829467,1750487433287,-205.63,0.00025286,2]
[366829469,1750487433296,-999.72845641,0.00025383,13]
[366829471,1750487433306,-247.64,0.0002541,2]
[366829473,1750487433315,-245.45,0.0002541,2]
[366829475,1750487433325,-245.34,0.0002541,2]
[366829477,1750487433334,-248.86,0.0002541,2]
[366829479,1750487433344,-305.87,0.0002541,2]
[366829481,1750487433354,-251.75,0.00025412,2]
[366829483,1750487433364,-301.27,0.00025414,2]
[366829485,1750487433373,-300.0,0.0002542,120]
[366829487,1750487433384,-301.81,0.0002543,2]
[366829489,1750487433393,-1000.0,0.00025512,2]
[366829491,1750487433403,-251.12,0.00025562,2]
[366829493,1750487433412,-246.9,0.00025562,2]
[366829495,1750487433422,-250.32,0.00025562,2]
[366829497,1750487433432,-301.77,0.00025734,2]
[366829499,1750487433442,-3382.66517358,0.00025776,2]
[366829501,1750487433451,-29999.99,0.00025786,2]
[366829503,1750487433461,-833.55,0.00025786,2]
[366829505,1750487433470,-999.72845641,0.00025866,14]
[366829507,1750487433480,-155.39,0.00026083,2]
[366829509,1750487433489,-1000.0,0.00026118,2]
[366829511,1750487433498,-285.88744036,0.00026173,2]
[366829514,1750487433516,-214.11255964,0.00026173,2]
[366829516,1750487433526,-275.48820304,0.00026173,2]
[366829518,1750487433538,-235.50835557,0.00026173,2]
[366829520,1750487433548,-416.36402811,0.0002619,2]
[366829524,1750487433579,-855.88571947,0.0002619,2]
[366829526,1750487433592,-1068.08161532,0.0002619,2]
[366829656,1750487438707,-7614.66880092,0.0002619,2]
[366829657,1750487438719,-2304.47299523,0.0002619,2]
[366829672,1750487440533,-263.5968376,0.0002619,2]
[366829673,1750487440654,-43462.07822445,0.0002619,2]
[366829674,1750487440665,-2000.0,0.00026199,2]
[366829675,1750487440675,-353337.88297463,0.000262,5]
[366829676,1750487440685,-4147.04801638,0.00026238,2]
[366829677,1750487440695,-11715.56248722,0.00026248,2]
[366829678,1750487440705,-500.0,0.00026268,2]
[366829679,1750487440716,-2073.52400819,0.00026338,2]
[366829680,1750487440726,-999.72845641,0.00026348,14]
[366829681,1750487440736,-795.83,0.000264,2]
[366829682,1750487440747,-1000.0,0.00026721,2]
[366829683,1750487440757,-500.0,0.00026733,2]
[366829684,1750487440767,-500.0,0.00026733,2]
[366829685,1750487440777,-250.0,0.00026826,2]
[366829686,1750487440787,-999.72845641,0.00026831,15]
[366829687,1750487440797,-203.0,0.00026905,10]
[366829688,1750487440811,-4147.04801638,0.00026918,2]
[366829689,1750487440820,-11715.56248719,0.00026928,2]
[366829690,1750487440830,-666.0,0.00026993,2]
[366829691,1750487440842,-250.0,0.00027083,2]
[366829692,1750487440852,-249.13,0.00027086,2]
[366829693,1750487440862,-2073.52400819,0.00027091,2]
[366829694,1750487440872,-500.0,0.00027101,2]
[366829695,1750487440882,-834.26476573,0.00027114,2]
[366829696,1750487440892,-1000.0,0.00027281,2]
[366829697,1750487440903,-502.06961513,0.00027281,2]
[366829698,1750487440916,-464.85,0.00027287,120]
[366829699,1750487440925,-999.72845641,0.00027314,16]
[366829700,1750487440934,-1109.6646,0.00027324,2]
[366829701,1750487440944,-2073.52400819,0.00027387,2]
[366829702,1750487440954,-3068.79,0.00027397,2]
[366829703,1750487440964,-300.0,0.00027397,2]
[366829704,1750487440975,-150.0,0.00027397,2]
[366829705,1750487440986,-3107.18126366,0.00027414,2]
[366829706,1750487440996,-1000.0,0.00027422,2]
[366829708,1750487441007,-6805.95676942,0.00027422,2]
[366829709,1750487441018,-10543.41809502,0.00027423,2]
[366829710,1750487441028,-87124.87,0.00027424,2]
[366829711,1750487441039,-2000.0,0.00027499,2]
[366829712,1750487441049,-6214.36252732,0.00027512,2]
[366829713,1750487441059,-151.0,0.00027522,2]
[366829715,1750487441068,-1957.856,0.00027522,2]
[366829716,1750487441078,-207.4,0.00027522,2]
[366829717,1750487441088,-151.0,0.00027522,2]
[366829718,1750487441097,-151.0,0.00027522,2]
[366829719,1750487441107,-151.0,0.00027522,2]
[366829720,1750487441117,-153.02422041,0.00027522,2]
[366829721,1750487441127,-151.0,0.00027522,2]
[366829722,1750487441136,-151.0,0.00027522,2]
[366829723,1750487441146,-151.0,0.00027522,2]
[366829724,1750487441156,-300.0,0.00027522,2]
[366829725,1750487441166,-151.0,0.00027522,2]
[366829726,1750487441176,-300.0,0.00027522,2]
[366829727,1750487441187,-151.0,0.00027522,2]
[366829728,1750487441197,-300.0,0.00027522,2]
[366829729,1750487441206,-151.0,0.00027522,2]
[366829730,1750487441216,-300.0,0.00027522,2]
[366829731,1750487441226,-151.0,0.00027522,2]
[366829732,1750487441236,-300.0,0.00027522,2]
[366829733,1750487441246,-151.0,0.00027522,2]
[366829734,1750487441256,-300.0,0.00027522,2]
[366829735,1750487441265,-151.0,0.00027522,2]
[366829736,1750487441274,-300.0,0.00027522,2]
[366829737,1750487441284,-151.0,0.00027522,2]
[366829738,1750487441294,-300.0,0.00027522,2]
[366829739,1750487441304,-151.0,0.00027522,2]
[366829740,1750487441313,-500.0,0.00027522,2]
[366829741,1750487441323,-300.0,0.00027522,2]
[366829742,1750487441333,-151.0,0.00027522,2]
[366829743,1750487441343,-151.0,0.00027522,2]
[366829744,1750487441352,-500.0,0.00027522,2]
[366829745,1750487441362,-300.0,0.00027522,2]
[366829746,1750487441371,-151.0,0.00027522,2]
[366829747,1750487441381,-500.0,0.00027522,2]
[366829748,1750487441390,-300.0,0.00027522,2]
[366829749,1750487441400,-151.0,0.00027522,2]
[366829750,1750487441410,-500.0,0.00027522,2]
[366829751,1750487441420,-300.0,0.00027522,2]
[366829752,1750487441430,-151.0,0.00027522,2]
[366829753,1750487441440,-500.0,0.00027522,2]
[366829754,1750487441449,-300.0,0.00027522,2]
[366829755,1750487441459,-500.0,0.00027522,2]
[366829756,1750487441469,-151.0,0.00027522,2]
[366829757,1750487441478,-500.0,0.00027522,2]
[366829758,1750487441488,-300.0,0.00027522,2]
[366829759,1750487441498,-500.0,0.00027522,2]
[366829760,1750487441508,-500.0,0.00027522,2]
[366829761,1750487441518,-371.28227599,0.00027522,2]
[366829762,1750487441527,-500.0,0.00027522,2]
[366829763,1750487441537,-500.0,0.00027522,2]
[366829764,1750487441546,-500.0,0.00027522,2]
[366829765,1750487441556,-500.0,0.00027522,2]
[366829766,1750487441566,-327.86137089,0.00027522,2]
[366829767,1750487441576,-500.0,0.00027522,2]
[366829768,1750487441586,-500.0,0.00027522,2]
[366829769,1750487441595,-151.0,0.00027522,2]
[366829770,1750487441604,-500.0,0.00027522,2]
[366829771,1750487441614,-500.0,0.00027522,2]
[366829772,1750487441624,-500.0,0.00027522,2]
[366829773,1750487441634,-500.0,0.00027522,2]
[366829774,1750487441643,-151.0,0.00027522,2]
[366829775,1750487441653,-189.44562174,0.00027522,2]
[366829776,1750487441662,-500.0,0.00027522,2]
[366829777,1750487441672,-500.0,0.00027522,2]
[366829778,1750487441681,-500.0,0.00027522,2]
[366829779,1750487441691,-500.0,0.00027522,2]
[366829780,1750487441700,-500.0,0.00027522,2]
[366829781,1750487441709,-500.0,0.00027522,2]
[366829782,1750487441718,-500.0,0.00027522,2]
[366829783,1750487441728,-500.0,0.00027522,2]
[366829784,1750487441738,-500.0,0.00027522,2]
[366829785,1750487441748,-2030.296672,0.00027577,2]
[366829786,1750487441758,-3107.18126366,0.00027597,2]
[366829787,1750487441768,-11715.56248719,0.00027607,2]
[366829788,1750487441778,-2105.41764886,0.00027632,2]
[366829789,1750487441788,-226.94,0.00027677,2]
[366829790,1750487441798,-2183.31810187,0.00027687,2]
[366829791,1750487441807,-2000.0,0.000277,2]
[366829792,1750487441817,-3107.18126366,0.00027732,2]
[366829793,1750487441827,-2264.10087164,0.00027742,2]
[366829794,1750487441836,-154.19942467,0.00027788,2]
[366829795,1750487441847,-999.72845641,0.00027797,17]
[366829796,1750487441857,-2347.87260389,0.00027797,2]
[366829797,1750487441867,-2434.74389024,0.00027852,2]
[366829798,1750487441877,-2524.82941417,0.00027907,2]
[366829799,1750487441887,-300.0,0.00027951,120]
[366829800,1750487441897,-2618.2481025,0.00027962,2]
[366829801,1750487441907,-154.19942467,0.00027971,2]
[366829802,1750487441922,-278.92,0.00028,2]
[366829803,1750487441931,-1422.35436999,0.00028,14]
[366829804,1750487441940,-50778.63014166,0.00028,2]
[366829805,1750487441950,-6891.44167565,0.00028,60]
[366829806,1750487441961,-167.2,0.00028001,2]
[366829807,1750487441971,-3107.18126366,0.00028007,2]
[366829808,1750487441981,-2715.12328229,0.00028017,2]
[366829809,1750487441992,-6805.95676938,0.00028053,2]
[366829810,1750487442003,-209.871816,0.00028059,7]
[366829811,1750487442014,-209.871816,0.00028059,7]
[366829812,1750487442024,-2815.58284374,0.00028072,2]
[366829813,1750487442033,-3107.18126366,0.00028117,2]
[366829814,1750487442044,-150.0,0.00028118,2]
[366829815,1750487442054,-2919.75940895,0.00028127,2]
[366829816,1750487442064,-154.19942467,0.00028154,2]
[366829817,1750487442074,-3027.79050709,0.00028182,2]
[366829818,1750487442083,-151.0,0.00028183,7]
[366829819,1750487442093,-209.871816,0.00028183,7]
[366829820,1750487442103,-209.871816,0.00028183,7]
[366829821,1750487442113,-3139.81875585,0.00028237,2]
[366829822,1750487442123,-3107.18126366,0.00028277,2]
[366829823,1750487442133,-999.72845641,0.00028279,18]
[366829824,1750487442143,-250.0,0.00028282,2]
[366829825,1750487442152,-11715.56248719,0.00028287,2]
[366829826,1750487442161,-3255.99204981,0.00028292,2]
[366829827,1750487442171,-867.83108252,0.000283,2]
[366829828,1750487442180,-3107.18126366,0.00028337,2]
[366829829,1750487442190,-154.19942467,0.00028337,2]
[366829830,1750487442199,-3376.46375566,0.00028347,2]
[366829831,1750487442209,-151.0,0.00028354,2]
[366829832,1750487442219,-3501.39291462,0.00028402,2]
[366829833,1750487442228,-3630.94445246,0.00028457,2]
[366829834,1750487442238,-1000.0,0.00028493,7]
[366829835,1750487442247,-1000.0,0.00028493,7]
[366829836,1750487442255,-791.61159895,0.00028493,7]
[366829837,1750487442263,-3107.18126366,0.00028502,2]
[366829838,1750487442272,-3765.2893972,0.00028512,2]
[366829839,1750487442280,-154.19942467,0.0002852,2]
[366829840,1750487442289,-198.60774678,0.00028594,2]
[366829841,1750487442298,-151.37,0.00028674,2]
[366829842,1750487442308,-6805.95676938,0.00028684,2]
[366829843,1750487442317,-3107.18126366,0.00028684,2]
[366829844,1750487442327,-633.429,0.00028694,2]
[366829845,1750487442336,-803.0,0.00028694,2]
[366829846,1750487442345,-1161.0,0.00028694,2]
[366829847,1750487442353,-3333.0,0.00028694,2]
[366829848,1750487442362,-4095.0,0.00028694,2]
[366829849,1750487442369,-156.0,0.00028694,2]
[366829850,1750487442378,-257.13756037,0.000287,2]
[366829851,1750487442386,-154.19942467,0.00028703,2]
[366829852,1750487442395,-150.0,0.00028709,2]
[366829853,1750487442405,-150.0,0.00028709,2]
[366829854,1750487442414,-150.0,0.00028709,2]
[366829855,1750487442424,-150.0,0.00028709,2]
[366829856,1750487442432,-150.0,0.00028709,2]
[366829857,1750487442441,-150.0,0.00028709,2]
[366829858,1750487442450,-150.0,0.00028709,2]
[366829859,1750487442459,-150.0,0.00028709,2]
[366829860,1750487442469,-150.0,0.00028709,2]
[366829861,1750487442479,-150.0,0.00028709,2]
[366829862,1750487442488,-223.193,0.00028709,2]
[366829863,1750487442497,-999.72845641,0.00028762,19]
[366829864,1750487442507,-3068.79,0.00028767,2]
[366829865,1750487442516,-500.0,0.00028773,5]
[366829866,1750487442526,-500.0,0.00028773,5]
[366829867,1750487442535,-500.0,0.00028773,5]
[366829868,1750487442544,-151.37,0.0002879,2]
[366829869,1750487442553,-151.37,0.0002879,2]
[366829870,1750487442559,-226.8332916,0.0002879,2]
[366829871,1750487442568,-385.66979219,0.000288,2]
[366829872,1750487442575,-724.15753981,0.000288,2]
[366829873,1750487442583,-292127.19548584,0.000288,2]
[366829874,1750487442593,-150.0,0.00028839,2]
[366829875,1750487442603,-154.19942467,0.00028886,2]
[366829876,1750487442613,-215.0738,0.00028891,2]
[366829877,1750487442623,-156.587,0.00028891,2]
[366829878,1750487442633,-151.0,0.00028909,7]
[366829879,1750487442643,-3107.18126366,0.00028957,2]
[366829880,1750487442654,-151.0,0.00028957,3]
[366829881,1750487442664,-11715.56248719,0.00028967,2]
[366829882,1750487442674,-6214.36252732,0.0002899,2]
[366829883,1750487442685,-209.871816,0.00029,7]
[366829884,1750487442694,-209.871816,0.00029,7]
[366829885,1750487442704,-1990.95,0.00029,2]
[366829886,1750487442714,-1990.95,0.00029,2]
[366829887,1750487442724,-813.82938735,0.00029,2]
[366829888,1750487442752,-1177.12061265,0.00029,2]
[366829889,1750487442762,-5972.85,0.00029,2]
[366829890,1750487442772,-5972.85,0.00029,2]
[366829891,1750487442782,-5972.85,0.00029,2]
[366829892,1750487442792,-155.61,0.00029,2]
[366829893,1750487442802,-155.61,0.00029,2]
[366829894,1750487442811,-2500.0,0.00029048,2]
[366829895,1750487442821,-154.19942467,0.00029069,2]
[366829896,1750487442831,-1018.270493,0.000291,8]
[366829897,1750487442841,-153.12,0.0002911,2]
[366829898,1750487442851,-150.5,0.00029137,2]
[366829899,1750487442861,-376.0,0.000292,2]
[366829900,1750487442871,-769.0,0.000292,2]
[366829901,1750487442882,-1520.616,0.00029212,22]
[366829902,1750487443067,-999.72845641,0.00029245,20]
[366829903,1750487443082,-154.19942467,0.00029253,2]
[366829904,1750487443092,-3107.18126366,0.0002929,2]
[366829905,1750487443102,-1990.95,0.000293,2]
[366829906,1750487443111,-5972.85,0.000293,2]
[366829907,1750487443121,-238.0,0.000293,2]
[366829908,1750487443131,-3107.18126366,0.00029305,2]
[366829909,1750487443141,-6805.95676938,0.00029315,2]
[366829910,1750487443151,-639.05560084,0.00029321,5]
[366829911,1750487443161,-1000.0,0.00029321,5]
[366829912,1750487443171,-1000.0,0.00029321,5]
[366829914,1750487443180,-1000.0,0.00029383,2]
[366829916,1750487443190,-2000.0,0.00029425,60]
[366829918,1750487443200,-512.821426,0.00029425,120]
[366829920,1750487443210,-154.19942467,0.00029436,2]
[366829922,1750487443220,-198.60774674,0.00029495,2]
[366829923,1750487443230,-151.0,0.0002956,3]
[366829925,1750487443240,-150.0,0.0002956,2]
[366829926,1750487443250,-500.0,0.000296,10]
[366829927,1750487443259,-154.19942467,0.00029619,2]
[366829928,1750487443269,-151.37,0.00029626,2]
[366829929,1750487443279,-3107.18126366,0.00029636,2]
[366829930,1750487443289,-11715.56248719,0.00029646,2]
[366829931,1750487443298,-168.0,0.00029649,2]
[366829932,1750487443308,-200.0,0.0002966,2]
[366829933,1750487443317,-203.0,0.00029663,14]
[366829934,1750487443327,-835.0,0.00029693,2]
[366829935,1750487443337,-150.0,0.000297,2]
[366829937,1750487443346,-1000.0,0.000297,10]
[366829939,1750487443356,-4583.00722,0.000297,2]
[366829940,1750487443366,-3933.42892233,0.000297,2]
[366829941,1750487443375,-191.0,0.00029701,2]
[366829943,1750487443385,-999.72845641,0.00029728,21]
[366829944,1750487443394,-150.0,0.00029728,2]
[366829945,1750487443403,-150.0,0.00029745,2]
[366829946,1750487443413,-168.0,0.00029746,2]
[366829947,1750487443423,-150.0,0.00029749,2]
[366829948,1750487443432,-150.0,0.00029753,2]
[366829949,1750487443442,-1595.42,0.00029765,2]
[366829950,1750487443452,-150.0,0.00029771,2]
[366829951,1750487443462,-150.0,0.00029778,2]
[366829952,1750487443472,-3107.18126366,0.00029782,2]
[366829953,1750487443483,-150.0,0.00029788,2]
[366829954,1750487443492,-151.0,0.00029792,7]
[366829955,1750487443502,-185.474701,0.00029792,7]
[366829956,1750487443512,-209.871816,0.00029792,7]
[366829957,1750487443522,-209.871816,0.00029792,7]
[366829958,1750487443532,-1600.0,0.000298,10]
[366829959,1750487443541,-154.19942467,0.00029802,2]
[366829960,1750487443552,-150.0,0.00029806,2]
[366829961,1750487443561,-150.0,0.0002981,2]
[366829962,1750487443571,-150.0,0.00029846,2]
[366829963,1750487443580,-150.0,0.00029847,2]
[366829964,1750487443590,-200.0,0.0002985,2]
[366829965,1750487443599,-150.0,0.00029853,2]
[366829966,1750487443608,-150.0,0.00029854,2]
[366829967,1750487443618,-1500.0,0.00029868,5]
[366829968,1750487443627,-1500.0,0.00029868,5]
[366829969,1750487443638,-150.0,0.00029889,2]
[366829970,1750487443647,-150.0,0.00029889,2]
[366829971,1750487443658,-3107.18126366,0.0002989,2]
[366829972,1750487443668,-150.0,0.00029896,2]
[366829973,1750487443684,-1283.0,0.000299,5]
[366829974,1750487443694,-1010.0,0.000299,9]
[366829975,1750487443703,-1002.0,0.000299,7]
[366829976,1750487443715,-3844.6273,0.000299,2]
[366829977,1750487443724,-1705.2225,0.000299,2]
[366829978,1750487443734,-2100.0,0.000299,10]
[366829979,1750487443743,-3933.4,0.000299,2]
[366829980,1750487443753,-150.0,0.00029906,2]
[366829981,1750487443762,-150.0,0.00029914,2]
[366829982,1750487443772,-150.0,0.00029925,2]
[366829983,1750487443781,-379.7929,0.00029926,2]
[366829984,1750487443791,-6805.95676938,0.00029946,2]
[366829985,1750487443800,-150.0,0.00029946,2]
[366829986,1750487443810,-150.0,0.00029956,2]
[366829987,1750487443820,-168.0,0.00029957,2]
[366829988,1750487443829,-3107.18126366,0.00029963,2]
[366829989,1750487443839,-150.0,0.00029963,2]
[366829990,1750487443849,-700.0,0.0002997,2]
[366829991,1750487443859,-150.0,0.0002997,2]
[366829992,1750487443868,-150.0,0.00029974,2]
[366829993,1750487443879,-151.37,0.0002998,2]
[366829994,1750487443888,-154.19942467,0.00029985,2]
[366829996,1750487443898,-65250.8065369,0.0002999,2]
[366829998,1750487443910,-151.37,0.0002999,2]
[366829999,1750487443919,-151.37,0.0002999,2]
[366830001,1750487443928,-8686.3793553,0.00029995,2]
[366830003,1750487443938,-235.4821763,0.00029995,2]
[366830005,1750487443947,-286.08386864,0.00029999,2]
[366830007,1750487443958,-500.0,0.00029999,2]
[366830009,1750487443968,-569.01056997,0.00029999,2]
[366830010,1750487443978,-500.0,0.00029999,2]
[366830011,1750487443990,-500.0,0.00029999,2]
[366830012,1750487444000,-500.0,0.00029999,2]
[366830013,1750487444009,-500.0,0.00029999,2]
[366830014,1750487444019,-500.0,0.00029999,2]
[366830015,1750487444029,-500.0,0.00029999,2]
[366830017,1750487444038,-500.0,0.00029999,2]
[366830018,1750487444047,-500.0,0.00029999,2]
[366830019,1750487444059,-484.47887641,0.00029999,2]
[366830020,1750487444068,-500.0,0.00029999,2]
[366830021,1750487444078,-500.0,0.00029999,2]
[366830022,1750487444088,-500.0,0.00029999,2]
[366830023,1750487444097,-500.0,0.00029999,2]
[366830024,1750487444106,-500.0,0.00029999,2]
[366830025,1750487444115,-400.0,0.00029999,2]
[366830026,1750487444125,-8254.03681347,0.0003,30]
[366830027,1750487444135,-14457.29413857,0.0003,5]
[366830028,1750487444145,-2634.71331333,0.0003,2]
[366830029,1750487444155,-16308.64981158,0.0003,2]
[366830030,1750487444172,-1156.2,0.0003,2]
[366830031,1750487444183,-1839.9370793,0.0003,2]
[366830032,1750487444193,-3880.2044634,0.0003,2]
[366830033,1750487444494,-150.0,0.00027074,7]
[366830034,1750487444504,-885.0,0.00028558,2]
[366830035,1750487444514,-12495.70048267,0.0003,2]
[366830037,1750487446506,-5031.70024456,0.0003,2]
[366830038,1750487446622,-150.0,0.00027074,7]
[366830039,1750487446632,-238.515,0.0003,2]
[366830040,1750487446644,-18274.56487836,0.0003,2]
[366830050,1750488051234,-160.34069652,0.0002039,2]
[366830051,1750488073595,153.12,0.00013699,2]
[366830052,1750488131861,203.0,0.0001939,2]
[366830053,1750488153951,2238116.4060621,0.00012,2]
[366830054,1750488153977,82356.26123735,0.00012,2]
[366830055,1750488154001,100000.0,0.00012,2]
[366830056,1750488154025,100000.0,0.00012,2]
[366830057,1750488154048,100000.0,0.00012,2]
[366830058,1750488154073,100000.0,0.00012,2]
[366830059,1750488154096,100000.0,0.00012,2]
[366830060,1750488154119,100000.0,0.00012,2]
[366830061,1750488154141,100000.0,0.00012,2]
[366830062,1750488154164,100000.0,0.00012,2]
[366830063,1750488154187,100000.0,0.00012,2]
[366830064,1750488154210,100000.0,0.00012,2]
[366830065,1750488154234,100000.0,0.00012,2]
[366830066,1750488154257,100000.0,0.00012,2]
[366830067,1750488154283,100000.0,0.00012,2]
[366830068,1750488154306,100000.0,0.00012,2]
[366830069,1750488154329,100000.0,0.00012,2]
[366830070,1750488154352,100000.0,0.00012,2]
[366830071,1750488154377,100000.0,0.00012,2]
[366830072,1750488154405,190000.0,0.00012,2]
[366830073,1750488154430,17518.0,0.00012,2]
[366830074,1750488154454,2845.83303795,0.00012,2]
[366830075,1750488154475,2845.83303795,0.00012,2]
[366830076,1750488154496,2845.83303795,0.00012,2]
[366830077,1750488154517,2845.83303795,0.00012,2]
[366830078,1750488154539,2845.83303795,0.00012,2]
[366830079,1750488154561,2845.83303795,0.00012,2]
[366830080,1750488154582,2845.83303795,0.00012,2]
[366830081,1750488154603,2845.83303795,0.00012,2]
[366830082,1750488154624,2845.83303795,0.00012,2]
[366830083,1750488154646,2845.83303795,0.00012,2]
[366830084,1750488154671,14000.0,0.00012,2]
[366830085,1750488154696,14000.0,0.00012,2]
[366830086,1750488154721,14000.0,0.00012,2]
[366830087,1750488154745,14000.0,0.00012,2]
[366830088,1750488154770,14000.0,0.00012,2]
[366830089,1750488154793,14000.0,0.00012,2]
[366830090,1750488154817,14000.0,0.00012,2]
[366830091,1750488154841,14000.0,0.00012,2]
[366830092,1750488154864,14000.0,0.00012,2]
[366830093,1750488154887,14000.0,0.00012,2]
[366830094,1750488154910,14000.0,0.00012,2]
[366830095,1750488154934,14000.0,0.00012,2]
[366830096,1750488154959,14000.0,0.00012,2]
[366830097,1750488154981,14000.0,0.00012,2]
[366830098,1750488155005,14000.0,0.00012,2]
[366830099,1750488155030,5580.0,0.00012,2]
[366830100,1750488155056,19436.8,0.00012,2]
[366830101,1750488155079,14000.0,0.00012,2]
[366830102,1750488155103,14000.0,0.00012,2]
[366830103,1750488155127,14000.0,0.00012,2]
[366830104,1750488155150,14000.0,0.00012,2]
[366830105,1750488155173,14000.0,0.00012,2]
[366830106,1750488155197,14000.0,0.00012,2]
[366830107,1750488155225,14000.0,0.00012,2]
[366830108,1750488155248,14000.0,0.00012,2]
[366830109,1750488155271,14000.0,0.00012,2]
[366830110,1750488155299,14000.0,0.00012,2]
[366830111,1750488155323,14000.0,0.00012,2]
[366830112,1750488155347,14000.0,0.00012,2]
[366830113,1750488155372,14000.0,0.00012,2]
[366830114,1750488155396,14000.0,0.00012,2]
[366830115,1750488155419,14000.0,0.00012,2]
[366830116,1750488155451,87500.0,0.00012,2]
[366830117,1750488156118,-207.74633876,0.00012,2]
[366830118,1750488157568,-174.06855954,0.00012,2]
[366830119,1750488159067,-326.91479356,0.00012,2]
[366830120,1750488162246,-192.79128817,0.00012,2]
[366830121,1750488165516,-238.65582016,0.00012,2]
[366830122,1750488167843,-154.24198311,0.00012,2]
[366830123,1750488170009,-401.79637884,0.00012,2]
[366830124,1750488173222,-154.12970542,0.00012,2]
[366830125,1750488174779,-168.0558128,0.00012,2]
[366830126,1750488176439,-299.26767799,0.00012,2]
[366830127,1750488181345,-175.36,0.00012,2]
[366830128,1750488183423,-340.53,0.00012,2]
[366830129,1750488185665,-261.21998438,0.00012,2]
[366830130,1750488188080,-266.83357352,0.00012,2]
[366830131,1750488190111,-193.68967642,0.00012,2]
[366830132,1750488192769,-239.11719063,0.00012,2]
[366830133,1750488194305,-157.76919959,0.00012,2]
[366830134,1750488197902,-512.64548663,0.00012,2]
[366830135,1750488204715,-182.42871183,0.00012,2]
[366830136,1750488207364,-200.0,0.00011,4]
[366830137,1750488207387,-9.0,0.00012,2]
[366830138,1750488209324,-238.15660195,0.000111,4]
[366830139,1750488213746,-210.93864858,0.000111,4]
[366830140,1750488220322,-50.90474947,0.000111,4]
[366830141,1750488220347,-303.99614483,0.000112,4]
[366830142,1750488224031,-152.0,0.000112,4]
[366830143,1750488227421,-213.18312774,0.000112,4]
[366830144,1750488229000,-130.82072743,0.000112,4]
[366830145,1750488229024,-88.15660195,0.000113,4]
[366830146,1750488231821,260.0,0.000247,120]
[366830147,1750488233306,-233.12212967,0.000113,4]
[366830148,1750488237747,-166.42633312,0.000113,4]
[366830149,1750488241453,-346.06634147,0.000113,4]
[366830150,1750488246308,-240.97906691,0.000113,4]
[366830151,1750488247794,-295.03459162,0.00011,4]
[366830152,1750488249886,-180.25,0.00011,4]
[366830153,1750488253111,-301.1783364,0.00011,4]
[366830154,1750488255868,-23.53707198,0.00011,4]
[366830155,1750488255898,-132.64292802,0.000111,4]
[366830156,1750488257698,-180.25,0.000111,4]
[366830157,1750488262484,-216.3013493,0.000111,4]
[366830158,1750488265436,-246.34838205,0.000111,4]
[366830159,1750488269218,-151.0,0.000111,4]
[366830160,1750488271293,-149.0,0.000111,4]
[366830161,1750488271319,-7.93123717,0.000111,4]
[366830162,1750488275213,-294.00757386,0.000111,4]
[366830163,1750488278711,-185.47312122,0.000111,4]
[366830164,1750488280355,-229.66944764,0.000111,4]
[366830165,1750488282548,-207.37596074,0.000111,4]